fUST/lending_fUST_20260114
["ID","MTS","AMOUNT","RATE_DAILY","PERIOD"]
[401692580,1768334431188,-39.08880074,0.00012328,2]
[401692581,1768334431210,-321.80342969,0.00012329,2]
[401692582,1768334434902,-178.19657031,0.00012329,2]
[401692583,1768334434925,-153.3491535,0.00012329,2]
[401692584,1768334436768,-225.87514555,0.00012329,2]
[401692585,1768334438486,-120.77570095,0.00012329,2]
[401692586,1768334438507,-73.87453509,0.00012329,2]
[401692587,1768334440555,-309.10288287,0.00012329,2]
[401692588,1768334442636,-117.02258204,0.00012329,2]
[401692589,1768334442657,-173.51716562,0.00012329,2]
[401692590,1768334444612,-254.64036561,0.00012329,2]
[401692591,1768334446062,-71.84246877,0.00012329,2]
[401692592,1768334446083,-330.39093003,0.00012329,2]
[401692593,1768334448187,-169.60906997,0.00012329,2]
[401692594,1768334448209,-12.16093003,0.00012329,2]
[401692595,1768334449638,-196.51,0.00012329,2]
[401692596,1768334452523,-180.05968308,0.00012329,2]
[401692597,1768334454516,-111.26938689,0.00012329,2]
[401692598,1768334454538,-88.68954379,0.00012329,2]
[401692599,1768334457084,-331.48209646,0.00012329,2]
[401692600,1768334463568,-300.0,0.00012328,2]
[401692601,1768334463589,-63.12976869,0.00012329,2]
[401692602,1768334465143,-16.69859106,0.00012329,2]
[401692603,1768334465165,-155.47003328,0.00012329,2]
[401692604,1768334467190,-344.52996672,0.00012329,2]
[401692605,1768334467210,-118.87415477,0.00012329,2]
[401692606,1768334469199,-236.98259447,0.00012329,2]
[401692607,1768334472539,-144.14325076,0.00012329,2]
[401692608,1768334472563,-24.00257101,0.00012329,2]
[401692609,1768334476148,-475.99742899,0.00012329,2]
[401692610,1768334476171,-326.81995032,0.00012329,2]
[401692611,1768334479138,-200.0,0.00011712,2]
[401692612,1768334486221,-238.98534243,0.00011712,2]
[401692613,1768334489576,-189.57,0.00011712,2]
[401692614,1768334493558,-199.81028461,0.00011712,2]
[401692615,1768334495801,-170.16235701,0.00011712,2]
[401692616,1768334497806,-412.92885453,0.00011712,2]
[401692617,1768334503375,-88.54316142,0.00011712,2]
[401692618,1768334503396,-66.57552941,0.00012329,2]
[401692619,1768334553329,-300.0,0.00012328,2]
[401692620,1768334553357,-106.60452027,0.00012329,2]
[401692621,1768334553387,-500.0,0.00012329,2]
[401692622,1768334553415,-500.0,0.00012329,2]
[401692623,1768334553442,-500.0,0.00012329,2]
[401692624,1768334553471,-403.61,0.00012329,2]
[401692625,1768334553498,-336.34,0.00012329,2]
[401692626,1768334553525,-280.29,0.00012329,2]
[401692627,1768334553553,-452.44,0.00012329,2]
[401692628,1768334553581,-562.53,0.00012329,2]
[401692629,1768334553609,-741.24,0.00012329,2]
[401692630,1768334553763,-736.28,0.00012329,2]
[401692631,1768334553790,-847.54,0.00012329,2]
[401692632,1768334553818,-840.09,0.00012329,2]
[401692633,1768334553844,-838.14,0.00012329,2]
[401692634,1768334553872,-821.48,0.00012329,2]
[401692635,1768334553900,-684.57,0.00012329,2]
[401692636,1768334554148,-570.47,0.00012329,2]
[401692637,1768334554159,-63.43095946,0.00012329,2]
[401692638,1768334554174,-411.95904054,0.00012329,2]
[401692639,1768334554183,-51.85095946,0.00012329,2]
[401692640,1768334556190,-344.30904054,0.00012329,2]
[401692641,1768334556224,-300.0,0.00012569,2]
[401692642,1768334556253,-300.0,0.00012569,2]
[401692643,1768334556283,-300.0,0.00012569,2]
[401692644,1768334556312,-300.0,0.00012569,2]
[401692645,1768334556341,-598.0,0.00012569,2]
[401692646,1768334556452,-5715.39191892,0.0001257,2]
[401692647,1768334562321,-330.14,0.00012329,2]
[401692648,1768334562356,-9339.73,0.0001257,2]
[401692649,1768334605096,-300.00000003,0.00012237,2]
[401692650,1768334607169,-300.00000009,0.00012237,2]
[401692651,1768334609828,-4.81695645,0.00012237,2]
[401692652,1768334609849,-295.18304355,0.00012237,2]
[401692679,1768334861478,-167.60787051,0.00011419,2]
[401692680,1768334863109,-221.67868038,0.00011419,2]
[401692681,1768334865244,-185.10582227,0.00011419,2]
[401692682,1768334868445,-211.44950232,0.00011419,2]
[401692683,1768334871084,-203.64178857,0.00011419,2]
[401692684,1768334872687,-298.14690003,0.00011419,2]
[401692685,1768334875840,-163.55,0.00011419,2]
[401692686,1768334880018,-284.912,0.00011419,2]
[401692687,1768334882119,-465.7204872,0.00011419,2]
[401692688,1768334884992,-273.918,0.00011419,2]
[401692689,1768334886490,-263.51690663,0.00011419,2]
[401692690,1768334890082,-373.2,0.00011419,2]
[401692691,1768334891656,-469.66107604,0.00011419,2]
[401692692,1768334893250,277.79,9.99e-05,2]
[401692693,1768334893549,277.79,9.99e-05,2]
[401692694,1768334893826,277.79,9.99e-05,2]
[401692695,1768334897171,-258.97,0.00011419,2]
[401692696,1768334900708,-446.50821143,0.00011419,2]
[401692697,1768334906741,-1518.32753562,0.00011419,2]
[401692698,1768334906769,-300.0,0.00012327,2]
[401692699,1768334906797,-300.0,0.00012327,2]
[401692700,1768334906825,-500.0,0.00012328,2]
[401692701,1768334906854,-500.0,0.00012328,2]
[401692702,1768334906883,-500.0,0.00012328,2]
[401692703,1768334906911,-500.0,0.00012328,2]
[401692704,1768334906939,-500.0,0.00012328,2]
[401692705,1768334906966,-263.35492876,0.00012328,2]
[401692706,1768334907199,-236.64507124,0.00012328,2]
[401692707,1768334907230,-500.0,0.00012328,2]
[401692708,1768334907260,-500.0,0.00012328,2]
[401692709,1768334907290,-500.0,0.00012328,2]
[401692710,1768334907322,-500.0,0.00012328,2]
[401692711,1768334907350,-500.0,0.00012328,2]
[401692712,1768334907378,-500.0,0.00012328,2]
[401692713,1768334907407,-500.0,0.00012328,2]
[401692714,1768334907436,-500.0,0.00012328,2]
[401692715,1768334907467,-500.0,0.00012328,2]
[401692716,1768334907496,-26.71985752,0.00012328,2]
[401692717,1768334907538,-2121.6655149,0.00011625,2]
[401692718,1768334907568,-473.28014248,0.00012328,2]
[401692719,1768334907597,-326.25614749,0.00012328,2]
[401692720,1768334907626,-257.76088597,0.00012328,2]
[401692721,1768334907656,-500.0,0.00012328,2]
[401692722,1768334907685,-314.13633112,0.00012328,2]
[401692723,1768334907713,-490.94754169,0.00012328,2]
[401692724,1768334907742,-486.39229358,0.00012328,2]
[401692725,1768334907839,-500.0,0.00012328,2]
[401692726,1768334907868,-500.0,0.00012328,2]
[401692727,1768334907898,-500.0,0.00012328,2]
[401692728,1768334907927,-414.36154836,0.00012328,2]
[401692729,1768334907956,-500.0,0.00012328,2]
[401692730,1768334907986,-500.0,0.00012328,2]
[401692731,1768334908018,-550.23552293,0.00012328,2]
[401692732,1768334908047,-500.0,0.00012328,2]
[401692733,1768334908075,-300.0,0.00012328,2]
[401692734,1768334908105,-300.0,0.00012328,2]
[401692735,1768334908412,-1200.0,0.00012328,2]
[401692736,1768334908441,-275.11,0.00012329,2]
[401692737,1768334908468,-275.11,0.00012329,2]
[401692738,1768334908495,-269.79,0.00012329,2]
[401692739,1768334908523,-224.82,0.00012329,2]
[401692740,1768334908550,-187.35,0.00012329,2]
[401692741,1768334908577,-156.13,0.00012329,2]
[401692742,1768334908605,-780.65,0.00012329,2]
[401692743,1768334909474,-30.20138187,0.00012329,2]
[401692744,1768334909489,-156.13,0.00012329,2]
[401692745,1768334909503,-780.65,0.00012329,2]
[401692746,1768334909517,-3262.09,0.00012329,2]
[401692747,1768334909538,-10000.01,0.00012329,2]
[401692748,1768334909553,-10000.01,0.00012329,2]
[401692749,1768334909579,-10000.01,0.00012329,2]
[401692750,1768334909604,-10000.01,0.00012329,2]
[401692751,1768334909645,-4229.12138187,0.00012329,2]
[401692752,1768334909668,-1541.76723626,0.00012329,2]
[401692753,1768334909819,-793.82,0.00012329,2]
[401692754,1768334909848,-198.01,0.00012329,2]
[401692755,1768334909899,-349.41,0.00012329,2]
[401692756,1768334909931,-959.57600381,0.00012329,2]
[401692757,1768334909962,-959.57600381,0.00012329,2]
[401692758,1768334909993,-959.57600381,0.00012329,2]
[401692759,1768334910025,-600.49797333,0.00012329,2]
[401692760,1768334910114,-359.07803048,0.00012329,2]
[401692761,1768334910142,-959.57600381,0.00012329,2]
[401692762,1768334910170,-959.57600381,0.00012329,2]
[401692763,1768334910199,-959.57600381,0.00012329,2]
[401692764,1768334910228,-959.57600381,0.00012329,2]
[401692765,1768334910257,-645.66990475,0.00012329,2]
[401692766,1768334910345,-313.90609906,0.00012329,2]
[401692767,1768334910375,-959.57600381,0.00012329,2]
[401692768,1768334910406,-959.57600381,0.00012329,2]
[401692769,1768334910434,-959.57600381,0.00012329,2]
[401692770,1768334910462,-959.57600381,0.00012329,2]
[401692771,1768334910491,-736.01376759,0.00012329,2]
[401692772,1768334910582,-223.56223622,0.00012329,2]
[401692773,1768334910611,-959.57600381,0.00012329,2]
[401692774,1768334910639,-959.57600381,0.00012329,2]
[401692775,1768334910668,-959.57600381,0.00012329,2]
[401692776,1768334910696,-959.57600381,0.00012329,2]
[401692777,1768334910724,-916.70149327,0.00012329,2]
[401692778,1768334910993,-42.87451054,0.00012329,2]
[401692779,1768334911025,-959.57600381,0.00012329,2]
[401692780,1768334911055,-959.57600381,0.00012329,2]
[401692781,1768334911085,-959.57600381,0.00012329,2]
[401692782,1768334911114,-959.57600381,0.00012329,2]
[401692783,1768334911143,-959.57600381,0.00012329,2]
[401692784,1768334911299,-959.57600381,0.00012329,2]
[401692785,1768334911327,-959.57600381,0.00012329,2]
[401692786,1768334911354,-959.57600381,0.00012329,2]
[401692787,1768334911382,-959.57600381,0.00012329,2]
[401692788,1768334911411,-959.57600381,0.00012329,2]
[401692789,1768334911743,-298.34581331,0.00011873,2]
[401692790,1768334911758,-52.96056293,0.00011873,2]
[401692791,1768334911767,-906.61544088,0.00012329,2]
[401692792,1768334911780,-52.96056293,0.00012329,2]
[401692793,1768334911790,-351.28939897,0.00012329,2]
[401692794,1768334915811,-408.75,0.00012329,2]
[401692795,1768334915841,-608.28660484,0.00012329,2]
[401692796,1768334915870,-959.57600381,0.00012329,2]
[401692797,1768334915898,-959.57600381,0.00012329,2]
[401692798,1768334915926,-959.57600381,0.00012329,2]
[401692799,1768334915954,-959.57600381,0.00012329,2]
[401692800,1768334916068,-289.32875984,0.00012329,2]
[401692801,1768334918908,-670.24724397,0.00012329,2]
[401692802,1768334918937,-959.57600381,0.00012329,2]
[401692803,1768334918966,-959.57600381,0.00012329,2]
[401692804,1768334918994,-959.57600381,0.00012329,2]
[401692805,1768334919029,-959.57600381,0.00012329,2]
[401692806,1768334919058,-23.33147777,0.00012329,2]
[401692807,1768334919151,-936.24452604,0.00012329,2]
[401692808,1768334924968,-340.63,0.00012329,2]
[401692809,1768334924996,-959.57600381,0.00012329,2]
[401692810,1768334925030,-959.57600381,0.00012329,2]
[401692811,1768334925065,-959.57600381,0.00012329,2]
[401692812,1768334925098,-959.57600381,0.00012329,2]
[401692813,1768334925128,-682.56596571,0.00012329,2]
[401692814,1768334925226,-277.0100381,0.00012329,2]
[401692815,1768334928114,-959.57600381,0.00012329,2]
[401692816,1768334928143,-959.57600381,0.00012329,2]
[401692817,1768334928173,-959.57600381,0.00012329,2]
[401692818,1768334928202,-959.57600381,0.00012329,2]
[401692819,1768334928232,-959.57600381,0.00012329,2]
[401692820,1768334928344,-404.2499619,0.00012329,2]
[401692821,1768334928377,-555.32604191,0.00012329,2]
[401692822,1768334928404,-959.57600381,0.00012329,2]
[401692823,1768334928434,-959.57600381,0.00012329,2]
[401692824,1768334928462,-959.57600381,0.00012329,2]
[401692825,1768334928493,-959.57600381,0.00012329,2]
[401692826,1768334928612,-1212.7498857,0.00012329,2]
[401692827,1768334928643,-62.16445968,0.00012329,2]
[401692828,1768334928672,-1274.91434538,0.00012329,2]
[401692829,1768334928701,-1274.91434538,0.00012329,2]
[401692830,1768334928728,-1274.91434538,0.00012329,2]
[401692831,1768334928756,-951.28066298,0.00012329,2]
[401692832,1768334928801,-323.6336824,0.00012329,2]
[401692833,1768334928830,-1274.91434538,0.00012329,2]
[401692834,1768334928860,-1274.91434538,0.00012329,2]
[401692835,1768334928889,-1274.91434538,0.00012329,2]
[401692836,1768334928917,-428.34221754,0.00012329,2]
[401692837,1768334929038,-846.57212784,0.00012329,2]
[401692838,1768334929067,-1274.91434538,0.00012329,2]
[401692839,1768334929095,-1274.91434538,0.00012329,2]
[401692840,1768334929124,-1274.91434538,0.00012329,2]
[401692841,1768334929245,-1274.91434538,0.00012329,2]
[401692842,1768334929274,-1274.91434538,0.00012329,2]
[401692843,1768334929304,-1274.91434538,0.00012329,2]
[401692844,1768334929334,-1075.60958234,0.00012329,2]
[401692845,1768334929406,-199.30476304,0.00012329,2]
[401692846,1768334929435,-1274.91434538,0.00012329,2]
[401692847,1768334929463,-1274.91434538,0.00012329,2]
[401692848,1768334929494,-1274.91434538,0.00012329,2]
[401692849,1768334929525,-677.00005626,0.00012329,2]
[401692850,1768334929733,-597.91428912,0.00012329,2]
[401692851,1768334929761,-1274.91434538,0.00012329,2]
[401692852,1768334929792,-1274.91434538,0.00012329,2]
[401692853,1768334929821,-1274.91434538,0.00012329,2]
[401692854,1768334930340,-74.97584368,0.00012329,2]
[401692855,1768334930355,-1199.9385017,0.00012329,2]
[401692856,1768334930364,-74.97584368,0.00012329,2]
[401692857,1768334930379,-1199.9385017,0.00012329,2]
[401692858,1768334930388,-74.97584368,0.00012329,2]
[401692859,1768334930413,-1154.69534948,0.00012329,2]
[401692860,1768334931096,-45.24315222,0.00012329,2]
[401692861,1768334931125,-1274.91434538,0.00012329,2]
[401692862,1768334931154,-1274.91434538,0.00012329,2]
[401692863,1768334931184,-1274.91434538,0.00012329,2]
[401692864,1768334931213,-985.1232779,0.00012329,2]
[401692865,1768334931304,-289.79106748,0.00012329,2]
[401692866,1768334931338,-1274.91434538,0.00012329,2]
[401692867,1768334931366,-1274.91434538,0.00012329,2]
[401692868,1768334931395,-1274.91434538,0.00012329,2]
[401692869,1768334931423,-1075.60958234,0.00012329,2]
[401692870,1768334931503,-199.30476304,0.00012329,2]
[401692871,1768334931537,-1274.91434535,0.00012329,2]
[401692872,1768334931567,-500.0,0.00012329,2]
[401692873,1768334931633,-6450.1813093,0.0001257,2]
[401692874,1768334934333,-283.85,0.00012329,2]
[401692875,1768334934361,-28.94113542,0.0001257,2]
[401692876,1768334934392,-600.0,0.00012574,2]
[401692877,1768334934421,-500.0,0.00012603,2]
[401692878,1768334934449,-173.92915876,0.00012818,2]
[401692879,1768334934479,-767.90821516,0.00012818,2]
[401692880,1768334934507,-767.90821516,0.00012818,2]
[401692881,1768334934535,-767.90821516,0.00012818,2]
[401692882,1768334934565,-767.90821516,0.00012818,2]
[401692883,1768334934680,-767.90821516,0.00012818,2]
[401692884,1768334934716,-767.90821516,0.00012818,2]
[401692885,1768334934746,-767.90821516,0.00012818,2]
[401692886,1768334934775,-500.0,0.00012818,2]
[401692887,1768334934805,-767.90821516,0.00012818,2]
[401692888,1768334934837,-767.90821516,0.00012818,2]
[401692889,1768334934871,-553.01963324,0.00012818,2]
[401692890,1768334934998,-214.88858192,0.00012818,2]
[401692891,1768334935032,-767.90821516,0.00012818,2]
[401692892,1768334935062,-767.90821516,0.00012818,2]
[401692893,1768334935095,-767.90821516,0.00012818,2]
[401692894,1768334935127,-767.90821516,0.00012818,2]
[401692895,1768334935157,-767.90821516,0.00012818,2]
[401692896,1768334935188,-806.30362593,0.00012818,2]
[401692897,1768334935276,-806.30362593,0.00012818,2]
[401692898,1768334935306,-806.30362593,0.00012818,2]
[401692899,1768334935336,-806.30362593,0.00012818,2]
[401692900,1768334935367,-806.30362593,0.00012818,2]
[401692901,1768334935396,-806.30362593,0.00012818,2]
[401692902,1768334935425,-806.30362593,0.00012818,2]
[401692903,1768334935548,-806.30362593,0.00012818,2]
[401692904,1768334935579,-935.31220609,0.00012818,2]
[401692905,1768334935608,-300.0,0.0001282,2]
[401692906,1768334935639,-300.0,0.0001282,2]
[401692907,1768334935670,-300.0,0.0001282,2]
[401692908,1768334935700,-300.0,0.0001282,2]
[401692909,1768334935730,-300.0,0.0001282,2]
[401692910,1768334935759,-300.0,0.0001282,2]
[401692911,1768334935789,-300.0,0.0001282,2]
[401692912,1768334935819,-300.0,0.0001282,2]
[401692913,1768334935848,-300.0,0.0001282,2]
[401692914,1768334935880,-300.0,0.0001282,2]
[401692915,1768334935912,-216.77833596,0.0001282,2]
[401692916,1768334935975,-83.22166404,0.0001282,2]
[401692917,1768334936005,-300.0,0.0001282,2]
[401692918,1768334936160,-300.0,0.0001282,2]
[401692919,1768334936191,-300.0,0.0001282,2]
[401692920,1768334936222,-300.0,0.0001282,2]
[401692921,1768334936250,-205.84,0.0001282,2]
[401692922,1768334936278,-500.0,0.00012877,2]
[401692923,1768334936305,-500.0,0.00012998,2]
[401692924,1768334936334,-167.41762285,0.00012998,2]
[401692925,1768334936363,-500.0,0.00012998,2]
[401692926,1768334936393,-500.0,0.00012998,2]
[401692927,1768334936422,-500.0,0.00012998,2]
[401692928,1768334936449,-500.0,0.00012998,2]
[401692929,1768334936477,-187.05142622,0.00012998,2]
[401692930,1768334937487,-137.78606984,0.00012998,2]
[401692931,1768334937504,-175.16250394,0.00012998,2]
[401692932,1768334937515,-324.83749606,0.00012998,2]
[401692933,1768334937532,-500.0,0.00012998,2]
[401692934,1768334937550,-200.16250394,0.00012998,2]
[401692935,1768334937561,-299.83749606,0.00012998,2]
[401692936,1768334937581,-200.16250394,0.00012998,2]
[401692937,1768334937594,-299.83749606,0.00012998,2]
[401692989,1768334961241,159.91,6.437e-05,2]
[401692990,1768334961648,239.86,6.73e-05,2]
[401692991,1768334961885,-236.55,0.00012329,2]
[401692992,1768334961907,-1.42934493,0.00012329,2]
[401692993,1768334962117,319.81,7.022e-05,2]
[401692995,1768334962531,399.77,7.315e-05,2]
[401692997,1768334962951,479.72,7.607e-05,2]
[401692998,1768334963343,559.67,7.9e-05,2]
[401692999,1768334963729,153.46115341,8.193e-05,2]
[401693000,1768334963759,486.16884659,8.193e-05,2]
[401693001,1768334964142,719.58,8.485e-05,2]
[401693002,1768334964530,799.54,8.778e-05,2]
[401693006,1768334968670,-325.92065507,0.00012329,2]
[401693007,1768334968692,-95.47960419,0.00012329,2]
[401693009,1768334970693,-177.31039581,0.00012329,2]
[401693010,1768334970722,-500.0,0.00012545,2]
[401693011,1768334970752,-500.0,0.00012682,2]
[401693012,1768334970781,-500.0,0.00012819,2]
[401693013,1768334970810,-500.0,0.00012956,2]
[401693014,1768334970838,-120.16250394,0.00012998,2]
[401693015,1768334970868,-500.0,0.00012998,2]
[401693016,1768334970897,-500.0,0.00012998,2]
[401693017,1768334970924,-500.0,0.00012998,2]
[401693018,1768334970952,-268.85808425,0.00013021,2]
[401693019,1768334970980,-792.99112734,0.00013021,2]
[401693020,1768334971248,-281.36577732,0.00013021,2]
[401693025,1768334976698,-227.33,0.00012329,2]
[401693030,1768334987327,189.44,0.00012329,2]
[401693043,1768335013269,-157.86,0.00012329,2]
[401693044,1768335013293,-150.22641204,0.00012329,2]
[401693047,1768335017055,-185.8047145,0.00012329,2]
[401693050,1768335018635,-154.81568131,0.00012329,2]
[401693052,1768335024774,204.0993915,0.00030136,120]
[401693075,1768335031525,-298.50319215,0.00012329,2]
[401693076,1768335031535,-594.0,0.00012329,2]
[401693077,1768335031547,-500.0,0.00012999,2]
[401693078,1768335031557,-300.0,0.0001302,2]
[401693079,1768335031567,-415.0,0.0001302,2]
[401693080,1768335031576,-50000.0,0.00013021,2]
[401693081,1768335031586,-500.0,0.00013093,2]
[401693082,1768335031595,-153.32118703,0.00013093,2]
[401693083,1768335031606,-205.84,0.00013094,2]
[401693084,1768335031619,-300.0,0.00013134,2]
[401693085,1768335031632,-642.31911351,0.00013135,2]
[401693086,1768335031641,-500.0,0.00013135,2]
[401693087,1768335031654,-531.65885849,0.00013135,2]
[401693088,1768335031663,-500.0,0.00013135,2]
[401693089,1768335031673,-1025.0,0.00013135,2]
[401693090,1768335031683,-500.0,0.00013135,2]
[401693091,1768335031692,-420.0,0.00013135,2]
[401693092,1768335031702,-500.0,0.00013135,2]
[401693093,1768335031713,-500.0,0.00013135,2]
[401693094,1768335031723,-500.0,0.00013135,2]
[401693095,1768335031732,-500.0,0.00013136,2]
[401693096,1768335031741,-1944.54,0.00013173,2]
[401693097,1768335031750,-166.33892588,0.00013227,2]
[401693098,1768335031760,-500.0,0.0001323,2]
[401693099,1768335031769,-2230.315306,0.00013264,2]
[401693100,1768335031779,-500.0,0.00013272,2]
[401693101,1768335031788,-500.0,0.00013272,2]
[401693102,1768335031798,-1025.0,0.00013272,2]
[401693103,1768335031807,-500.0,0.00013272,2]
[401693104,1768335031818,-200.0,0.00013272,2]
[401693105,1768335031827,-420.0,0.00013272,2]
[401693106,1768335031837,-455.94399117,0.00013272,2]
[401693107,1768335031846,-500.0,0.00013272,2]
[401693108,1768335031855,-382.4855359,0.00013272,2]
[401693109,1768335031864,-221.51692933,0.00013272,2]
[401693110,1768335031873,-151.0,0.00013272,2]
[401693111,1768335031882,-158.55298923,0.00013273,2]
[401693112,1768335031892,-500.0,0.00013273,2]
[401693113,1768335031903,-500.0,0.00013273,2]
[401693114,1768335031912,-500.0,0.00013273,2]
[401693115,1768335031922,-500.0,0.00013273,2]
[401693116,1768335031931,-500.0,0.00013273,2]
[401693117,1768335031941,-500.0,0.00013273,2]
[401693118,1768335031951,-500.0,0.00013273,2]
[401693119,1768335031963,-500.0,0.00013273,2]
[401693120,1768335031972,-214.90304718,0.00013273,2]
[401693121,1768335031982,-500.0,0.00013273,2]
[401693122,1768335031991,-500.0,0.00013273,2]
[401693123,1768335032001,-500.11885112,0.00013273,2]
[401693124,1768335032011,-252.1270608,0.00013273,2]
[401693125,1768335032021,-500.0,0.00013273,2]
[401693126,1768335032031,-500.0,0.00013273,2]
[401693127,1768335032043,-500.0,0.00013273,2]
[401693128,1768335032053,-458.83445117,0.00013273,2]
[401693129,1768335032063,-500.0,0.00013273,2]
[401693130,1768335032072,-500.0,0.00013273,2]
[401693131,1768335032082,-213.14839871,0.00013273,2]
[401693132,1768335032092,-300.0,0.0001328,2]
[401693133,1768335032102,-300.0,0.0001328,2]
[401693134,1768335032113,-300.0,0.0001328,2]
[401693135,1768335032122,-300.0,0.0001328,2]
[401693136,1768335032133,-300.0,0.0001328,2]
[401693137,1768335032142,-300.0,0.0001328,2]
[401693138,1768335032153,-300.0,0.0001328,2]
[401693139,1768335032162,-300.0,0.0001328,2]
[401693140,1768335032172,-300.0,0.0001328,2]
[401693141,1768335032181,-300.0,0.0001328,2]
[401693142,1768335032190,-300.0,0.0001328,2]
[401693143,1768335032200,-300.0,0.0001328,2]
[401693144,1768335032209,-300.0,0.0001328,2]
[401693145,1768335032219,-300.0,0.0001328,2]
[401693146,1768335032228,-300.0,0.0001328,2]
[401693147,1768335032239,-600.0,0.0001328,2]
[401693148,1768335032248,-1851.0868697,0.0001335,2]
[401693149,1768335032258,-800.0,0.00013364,2]
[401693150,1768335032267,-500.0,0.00013367,2]
[401693151,1768335032277,-205.84,0.00013368,2]
[401693152,1768335032286,-1851.0868697,0.00013388,2]
[401693153,1768335032295,-286.46243099,0.00013409,2]
[401693154,1768335032305,-500.0,0.00013409,2]
[401693155,1768335032314,-200.0,0.00013409,2]
[401693156,1768335032323,-1025.0,0.00013409,2]
[401693157,1768335032334,-500.0,0.00013409,2]
[401693158,1768335032344,-200.0,0.00013409,2]
[401693159,1768335032353,-420.0,0.00013409,2]
[401693160,1768335032363,-500.0,0.00013409,2]
[401693161,1768335032372,-227.04753207,0.00013409,2]
[401693162,1768335032382,-500.0,0.0001341,2]
[401693163,1768335032391,-1851.0868697,0.00013425,2]
[401693164,1768335032401,-53091.3944594,0.0001345,2]
[401693165,1768335032411,-1851.0868697,0.00013463,2]
[401693167,1768335032420,-3029.07334931,0.00013485,2]
[401693168,1768335032430,-731.78831631,0.00013488,2]
[401693169,1768335032439,-800.0,0.00013498,2]
[401693170,1768335032449,-1851.0868697,0.000135,2]
[401693171,1768335032459,-151.0,0.000135,2]
[401693172,1768335032468,-500.0,0.00013504,2]
[401693173,1768335032477,-264.62387196,0.00013546,2]
[401693174,1768335032487,-500.0,0.00013546,2]
[401693175,1768335032496,-1025.0,0.00013546,2]
[401693176,1768335032505,-500.0,0.00013546,2]
[401693177,1768335032515,-254.713891,0.00013546,2]
[401693178,1768335032525,-420.0,0.00013546,2]
[401693179,1768335032535,-500.0,0.00013546,2]
[401693180,1768335032544,-500.0,0.00013547,2]
[401693181,1768335032554,-500.0,0.00013547,2]
[401693182,1768335032564,-800.0,0.00013552,2]
[401693183,1768335032573,-800.0,0.00013567,2]
[401693184,1768335032582,-800.0,0.00013572,2]
[401693185,1768335032591,-800.0,0.00013573,2]
[401693186,1768335032601,-219.08,0.00013576,2]
[401693187,1768335032611,-461.67526834,0.0001359,2]
[401693188,1768335032620,-168.3888056,0.0001359,2]
[401693189,1768335032629,-174.61919141,0.0001359,2]
[401693190,1768335032648,-181.08010149,0.0001359,2]
[401693191,1768335032660,-187.78006525,0.0001359,2]
[401693192,1768335032670,-194.72792766,0.0001359,2]
[401693193,1768335032680,-250.0,0.0001359,2]
[401693194,1768335032689,-201.93286099,0.0001359,2]
[401693195,1768335032699,-250.0,0.0001359,2]
[401693196,1768335032710,-209.40437684,0.0001359,2]
[401693197,1768335032719,-191.51219832,0.0001359,2]
[401693198,1768335032729,-217.15233878,0.0001359,2]
[401693199,1768335032739,-225.18697532,0.0001359,2]
[401693200,1768335032748,-233.51889341,0.0001359,2]
[401693201,1768335032758,-242.15909246,0.0001359,2]
[401693202,1768335032767,-251.11897888,0.0001359,2]
[401693203,1768335032777,-260.4103811,0.0001359,2]
[401693204,1768335032786,-270.0455652,0.0001359,2]
[401693205,1768335032796,-280.03725112,0.0001359,2]
[401693206,1768335032805,-290.39862941,0.0001359,2]
[401693207,1768335032814,-301.1433787,0.0001359,2]
[401693208,1768335032824,-250.0,0.0001359,2]
[401693209,1768335032833,-250.0,0.0001359,2]
[401693210,1768335032843,-302.86950393,0.0001359,2]